[Event "12th WLC Weekend 2022"]
[Site "Eindhoven"]
[Date "2022.05.15"]
[Round "5.14"]
[White "Auwens, Michel"]
[Black "Ciornei, Dragos"]
[Result "0-1"]
[ECO "B22"]
[WhiteElo "1791"]
[BlackElo "2164"]
[Annotator "TA"]
[PlyCount "122"]
[EventDate "2022.05.13"]
[EventType "swiss"]
[EventCountry "NED"]
[SourceTitle "playchess.com"]
[Source "ChessBase"]
[SourceQuality "1"]
[TimeControl "5400+30"]

{[%evp 11,122,27,29,20,27,23,24,28,72,49,78,58,55,55,56,38,38,25,38,34,69,32,33,32,64,48,73,52,136,145,143,143,520,482,668,818,943,933,898,566,566,655,633,655,621,608,5489,3252,1488,135,141,129,179,188,251,233,229,239,250,165,240,247,293,289,507,452,422,452,437,437,404,192,373,353,336,177,149,95,95,31,79,32,35,0,0,0,0,0,0,0,0,0,0,0,0,-8,0,0,0,-8,-8,-1496,-435,-29969,-29967,-29980,-29981,-29981,-29978,-29984,-29985,-29987,-29988]} 1. e4 {[%emt 0:00:30]} c5 {[%emt 0:02:01]} 2. d4 {[%emt 0:00:00]} cxd4 {[%emt 0:00:26]} 3. c3 {[%emt 0:00:00]} g6 {[%emt 0:05:06]} 4. cxd4 {[%emt 0:01:33]} d5 {[%emt 0:00:37]} 5. e5 {[%emt 0:00:17]} Nc6 {[%emt 0:00:22]} 6. Nc3 {[%emt 0:01:38]} Nh6 {[%emt 0:02:06]} 7. h3 {[%emt 0:04:12] B22: Sicilian: 2 c3.} Nf5 {[%emt 0:02:28]} 8. Nf3 {[%emt 0:03:18]} h5 {[%emt 0:02:03]} 9. Bb5 {[%emt 0:08:56][%cal Bf1b5,Bb5a4,Ba4b3,Bb3c2,Bc2d3][%mdl 32] White has an edge.} a6 {[%emt 0:03:06]} (9... e6) 10. Ba4 {[%emt 0:13:56] [#]} b5 $146 {[%emt 0:03:17]} ({Predecessor:} 10... e6 11. Be3 Nxe3 12. fxe3 Bh6 13. Qe2 Bd7 14. Bxc6 Bxc6 15. O-O O-O 16. Ne1 Qe7 {0-1 (42) Schepers,V-Kniest,O (2165) Germany 1993}) 11. Bb3 {[%emt 0:01:40]} e6 {[%emt 0:01:11]} 12. O-O {[%emt 0:00:23]} Be7 {[%emt 0:04:11]} 13. a4 {[%emt 0:09:16]} b4 {[%emt 0:02:16]} 14. Ne2 {[%emt 0:04:33]} a5 {[%emt 0:03:25]} 15. Bc2 {[%emt 0:01:02]} Ba6 {[%emt 0:02:49]} 16. Bd3 {[%emt 0:01:40]} (16. Bxf5 $5 gxf5 17. b3 $14) 16... Qb6 {[%emt 0:01:45]} 17. Be3 {[%emt 0:02:23]} Kd7 {[%emt 0:04:16]} 18. b3 {[%emt 0:00:47]} Rag8 {[%emt 0:03:13]} 19. Rc1 {[%emt 0:09:57]} g5 {[%emt 0:10:02]} (19... Bxd3 $14 20. Qxd3 g5) 20. Bxf5 $16 {[%emt 0:05:06]} exf5 {[%emt 0:00:52]} 21. Re1 {[%emt 0:00:56][%cal Oh3h4] Threatens to win with h4!} g4 $2 {[%emt 0:05:20][%mdl 8192]} (21... Ke8 $16 {is a better chance.}) 22. Nf4 $1 $18 {[%emt 0:00:23]} gxf3 {[%emt 0:01:05]} 23. Qxf3 {[%emt 0:00:13]} Bb7 {[%emt 0:09:59]} 24. Nxd5 {[%emt 0:00:39]} Qd8 {[%emt 0:01:28]} 25. Qxf5+ {[%emt 0:16:00]} Ke8 {[%emt 0:01:22]} 26. Nf6+ {[%emt 0:01:06]} Bxf6 {[%emt 0:22:26]} 27. exf6 {[%emt 0:03:52] White threatens Bg5+ and mate.} Rxg2+ {[%emt 0:02:48]} 28. Kf1 {[%emt 0:00:27] White wants to mate with Bh6+.} Ne7 {[%emt 0:02:39]} 29. Qb5+ {[%emt 0:03:51]} Qd7 {[%emt 0:00:48]} 30. Qxd7+ $2 {[%emt 0:01:24]} (30. Bf4 $18 {and the rest is easy.} Qxb5+ 31. axb5) 30... Kxd7 $16 {[%emt 0:00:03]} 31. fxe7 {[%emt 0:00:37]} Rhg8 {[%emt 0:00:57] [#]} (31... Rg6 $16) 32. Ke2 $1 $18 {[%emt 0:02:10]} Re8 {[%emt 0:01:00]} (32... Rc8 $142 33. Rxc8 Bxc8) 33. Rc5 {[%emt 0:00:53][%csl LRa5,LRh5]} Rxe7 {[%emt 0:00:42]} 34. Rxa5 {[%emt 0:00:14]} h4 {[%emt 0:00:22]} 35. Ra7 {[%emt 0:02:04]} Kc8 {[%emt 0:00:39]} (35... Ke8 {keeps fighting.} 36. Ra5 Rh2) 36. Rc1+ {[%emt 0:00:33]} Kb8 {[%emt 0:00:10]} 37. Ra5 {[%emt 0:00:13] Strongly threatening Kf1.} Rh2 $2 {[%emt 0:00:34]} (37... Rg6 38. Rb5 Ka8 39. Rxb4 Rc6) 38. Kd2 {[%emt 0:00:45] Intending Bf4+ and mate.} Rxe3 {[%emt 0:00:36]} 39. Kxe3 {[%emt 0:00:01]} Rxh3+ {[%emt 0:00:11][%mdl 4096] Endgame KRR-KRB} 40. Kd2 {[%emt 0:00:19]} Rxb3 {[%emt 0:00:08]} 41. Rg1 {[%emt 0:00:21]} ({Less strong is} 41. Rb5 h3 42. d5 h2 $18) (41. Re1 $142 {Hoping for Re8+.} Rc3 42. Rb5) 41... Be4 $2 {[%emt 0:00:35]} (41... Rb2+ {is a better defense.} 42. Kc1 Rxf2) 42. Rg8+ {[%emt 0:01:14]} Kb7 {[%emt 0:00:10]} 43. Rg7 {[%emt 0:00:07]} (43. Rg4 $142 Rd3+ 44. Ke2) 43... Bg6 {[%emt 0:00:21]} 44. Rg5 {[%emt 0:00:21]} (44. Rb5+ $142 Kc7 45. Rg8) 44... Kc6 $16 {[%emt 0:00:36]} 45. d5+ {[%emt 0:00:55]} ({White should play} 45. Rg8 $16) 45... Kc5 {[%emt 0:00:24] [#]} (45... Kd6 $1 $14) 46. d6+ {[%emt 0:00:19]} (46. Rg8 $1 $16) 46... Kxd6 $14 {[%emt 0:00:13]} 47. R7xg6+ {[%emt 0:00:05]} (47. Rb5 {seems wilder.} h3 48. Rg8 Rf3 49. Ke1) 47... fxg6 {[%emt 0:00:09]} 48. Rxg6+ {[%emt 0:00:03] KR-KR} Ke5 {[%emt 0:00:58]} 49. Rg4 {[%emt 0:00:21]} h3 {[%emt 0:00:22] aiming for ...Rb2+.} 50. a5 {[%emt 0:00:18]} Kf5 {[%emt 0:00:32]} 51. Rh4 {[%emt 0:00:18]} Kg5 {[%emt 0:00:18]} 52. Rh8 {[%emt 0:00:24]} Kg4 {[%emt 0:01:13]} 53. Ke2 {[%emt 0:01:48]} Ra3 {[%emt 0:00:58]} 54. Rg8+ {[%emt 0:01:23]} Kf4 {[%emt 0:00:21]} 55. Rf8+ {[%emt 0:00:31]} Ke4 {[%emt 0:00:47] White must now prevent ...Ra2+.} 56. f3+ $2 {[%emt 0:00:29][%mdl 8192]} (56. Rh8 $11) 56... Kd4 $19 {[%emt 0:00:20]} 57. Rf4+ {[%emt 0:01:16]} (57. Rd8+ $19 Kc4 58. Kf2) 57... Kc3 {[%emt 0:00:16] Black mates.} 58. Rh4 {[%emt 0:00:19]} h2 {[%emt 0:00:46]} 59. Ke3 {[%emt 0:00:11]} Ra2 {[%emt 0:00:42]} 60. a6 {[%emt 0:00:06]} b3 {[%emt 0:00:18][%cal Bb4b3,Bb3b2][%mdl 32]} 61. a7 {[%emt 0:00:08]} b2 {[%emt 0:00:47] Quite a comeback for Black.  Weighted Error Value: White=0.57/Black=0.39} 0-1

[Event "12th WLC Weekend 2022"]
[Site "Eindhoven"]
[Date "2022.05.15"]
[Round "5.15"]
[White "Albers, Sasa"]
[Black "Van de Lagemaat, Arend"]
[Result "1-0"]
[ECO "B11"]
[WhiteElo "2117"]
[BlackElo "1995"]
[Annotator "TA"]
[PlyCount "71"]
[EventDate "2022.05.13"]
[EventType "swiss"]
[EventCountry "NED"]
[SourceTitle "playchess.com"]
[Source "ChessBase"]
[SourceQuality "1"]
[TimeControl "5400+30"]

{[%evp 10,71,23,4,27,8,36,22,32,18,16,13,32,10,13,-3,0,13,35,22,50,47,51,41,28,27,56,63,63,58,97,88,111,72,80,48,111,101,109,79,59,52,43,39,72,52,58,60,61,52,56,14,50,46,37,31,149,142,1004,1006,29963,29966,2875,2417]} 1. e4 {[%emt 0:00:03]} c6 {[%emt 0:00:11]} 2. Nf3 {[%emt 0:00:04]} d5 {[%emt 0:00:04]} 3. Nc3 {[%emt 0:00:04]} Bg4 {[%emt 0:00:05]} 4. h3 {[%emt 0:00:05]} Bxf3 {[%emt 0:00:04]} 5. Qxf3 {[%emt 0:00:05]} e6 {[%emt 0:00:07]} 6. Be2 {[%emt 0:00:06]} Bc5 {[%emt 0:03:32] B11: Caro-Kann: Two Knights Variation.} 7. O-O {[%emt 0:00:06] [#]} d4 $146 {[%emt 0:02:08]} (7... Nf6 {feels hotter.} 8. d3 Nbd7 9. Qf4 Qb8) ({Predecessor:} 7... Ne7 8. Na4 Bd6 9. d4 dxe4 10. Qxe4 Nd7 11. Rd1 Nf6 12. Qf3 Qa5 13. b3 e5 14. dxe5 Bxe5 {½-½ (41) Vachier Lagrave,M (2760)-Svidler,P (2714) chess24.com INT 2021}) 8. Nb1 {[%emt 0:01:30]} Ne7 {[%emt 0:01:44] The position is equal.} 9. d3 {[%emt 0:00:26]} O-O {[%emt 0:01:13]} 10. Qg3 {[%emt 0:06:15]} Nd7 {[%emt 0:06:17]} 11. f4 {[%emt 0:02:49]} f5 {[%emt 0:00:39]} 12. Kh1 {[%emt 0:00:38]} Nf6 {[%emt 0:02:08]} 13. Nd2 {[%emt 0:01:12]} Bb4 {[%emt 0:04:46]} (13... a5) 14. Bf3 {[%emt 0:02:21]} Bxd2 {[%emt 0:03:07]} 15. Bxd2 {[%emt 0:00:09]} c5 {[%emt 0:05:03]} 16. Rae1 {[%emt 0:04:53]} Qd7 {[%emt 0:02:20]} 17. Qf2 {[%emt 0:14:49]} Rae8 {[%emt 0:05:29]} 18. a3 {[%emt 0:05:59]} Nc6 {[%emt 0:03:28]} 19. g4 {[%emt 0:05:56]} Re7 {[%emt 0:05:45]} 20. Qg2 {[%emt 0:09:11]} Kh8 {[%emt 0:01:47]} 21. Re2 {[%emt 0:07:57]} g6 {[%emt 0:08:49]} 22. Rfe1 {[%emt 0:03:57]} Rfe8 {[%emt 0:06:35]} (22... fxe4 $1 $14 23. dxe4 Qc7) 23. exf5 $16 {[%emt 0:10:57]} exf5 {[%emt 0:00:09]} 24. Rxe7 {[%emt 0:00:57]} Rxe7 {[%emt 0:00:58]} 25. Rxe7 {[%emt 0:01:10]} Nxe7 {[%emt 0:02:09]} 26. Qe2 {[%emt 0:02:24] [#] Qe5 is the strong threat.} Nc6 {[%emt 0:03:59] Prevents Qe5.} 27. c4 {[%emt 0:04:53]} Kg7 {[%emt 0:01:39]} 28. b4 {[%emt 0:00:27][%cal Bb2b4,Bb4b5][%mdl 32] Black must now prevent b5.} b6 $1 {[%emt 0:01:15]} 29. b5 {[%emt 0:09:51]} Nd8 {[%emt 0:00:59]} 30. gxf5 {[%emt 0:03:39]} gxf5 {[%emt 0:04:32]} 31. Qg2+ {[%emt 0:00:01]} Kf8 {[%emt 0:01:07]} 32. Qg5 {[%emt 0:00:28]} Ke7 {[%emt 0:04:34] [#]} (32... Ng8 $14) 33. Be1 $1 {[%emt 0:00:01] And now Bh4 would win. White is much more active.} Nf7 $2 {[%emt 0:07:09][%mdl 8192]} (33... Ne6 $16 34. Qxf5 Ng7 35. Qxd7+ Kxd7) 34. Qg7 $18 {[%emt 0:00:01] White wants to mate with Bh4.} Ke6 {[%emt 0:03:35]} 35. Bh4 {[%emt 0:00:16][%csl Gh4][%cal Rg7f6]} Qe7 {[%emt 0:01:06]} 36. Bd5+ {[%emt 0:00:24] Weighted Error Value: White=0.09 (flawless) /Black=0.48} 1-0

[Event "12th WLC Weekend 2022"]
[Site "Eindhoven"]
[Date "2022.05.15"]
[Round "5.16"]
[White "Roebers, Jan"]
[Black "Bakija, Alan"]
[Result "1-0"]
[ECO "B11"]
[WhiteElo "2126"]
[BlackElo "1868"]
[Annotator "TA"]
[PlyCount "37"]
[EventDate "2022.05.13"]
[EventType "swiss"]
[EventCountry "NED"]
[SourceTitle "playchess.com"]
[Source "ChessBase"]
[SourceQuality "1"]
[TimeControl "5400+30"]

{[%evp 10,37,25,4,28,29,181,179,224,226,479,477,469,475,473,466,613,614,626,636,689,525,516,491,773,494,481,498,527,328]} 1. e4 {[%emt 0:00:02]} c6 {[%emt 0:01:09]} 2. Nc3 {[%emt 0:01:13]} d5 {[%emt 0:00:05]} 3. Nf3 {[%emt 0:00:04]} Bg4 {[%emt 0:00:05]} 4. h3 {[%emt 0:00:13]} Bxf3 {[%emt 0:00:04]} 5. Qxf3 {[%emt 0:00:04]} e6 {[%emt 0:00:06]} 6. g3 {[%emt 0:00:47]} Qf6 {[%emt 0:01:48] B11: Caro-Kann: Two Knights Variation.} 7. Qe2 {[%emt 0:03:34] [#] Threatens to win with exd5.} Nd7 $146 {[%emt 0:02:12]} (7... Qd8 $11 {and Black stays safe.}) ({Predecessor:} 7... dxe4 8. Nxe4 Qg6 9. Bg2 Nd7 10. d4 Ngf6 11. Bf4 Qh5 12. Nd6+ Bxd6 13. Bxd6 Qxe2+ 14. Kxe2 {0-1 (64) Sanchez Jerez,E (2246)-Insa Alfonso,P (2274) Linares 2018}) 8. exd5 $18 {[%emt 0:08:39]} Ne5 {[%emt 0:18:04] White is clearly better.} (8... Qe5) 9. Bg2 {[%emt 0:19:27] [#] Prevents Nf3+. aiming for d4.} ({Don't do} 9. f4 Nd7 10. Bg2 Qg6) 9... Ne7 $2 {[%emt 0:30:16]} (9... cxd5 10. d4 Nc6 11. Nxd5 Qd8) 10. Ne4 {[%emt 0:14:01][%cal Bc3e4,Be4d6,Bd6b7][%mdl 32] White is clearly winning.} Qg6 {[%emt 0:00:48]} 11. Nd6+ {[%emt 0:01:11]} Kd7 {[%emt 0:02:14]} 12. Qxe5 {[%emt 0:06:29]} exd5 {[%emt 0:00:19]} 13. Nxb7 {[%emt 0:02:24]} Nf5 {[%emt 0:01:34]} 14. O-O {[%emt 0:00:37]} a5 {[%emt 0:05:57]} 15. g4 {[%emt 0:11:31]} Nh4 {[%emt 0:05:17]} 16. d4 {[%emt 0:01:15] [#] Bf4 is the strong threat.} f5 {[%emt 0:20:44]} (16... Nxg2 $142 17. Kxg2 Re8) 17. Nc5+ {[%emt 0:06:33]} Bxc5 {[%emt 0:00:19]} 18. dxc5 {[%emt 0:00:04]} fxg4 {[%emt 0:04:12]} 19. Qd6+ {[%emt 0:00:42] White took control after the opening.  Weighted Error Value: White=0.45/Black=0.78} 1-0

[Event "12th WLC Weekend 2022"]
[Site "Eindhoven"]
[Date "2022.05.15"]
[Round "5.17"]
[White "Margarido, Jose Miguel Teixeira"]
[Black "Wuijts, Johan"]
[Result "1/2-1/2"]
[ECO "C02"]
[WhiteElo "2127"]
[BlackElo "1964"]
[Annotator "TA"]
[PlyCount "43"]
[EventDate "2022.05.13"]
[EventType "swiss"]
[EventCountry "NED"]
[SourceTitle "playchess.com"]
[Source "ChessBase"]
[SourceQuality "1"]
[TimeControl "5400+30"]

{[%evp 10,43,0,-4,0,-39,21,-47,11,-49,-51,-54,-38,-48,-38,-52,0,-32,-29,-37,47,50,54,51,46,0,16,13,49,19,50,0,0,0,0,-50]} 1. e4 {[%emt 0:01:28]} e6 {[%emt 0:00:41]} 2. d4 {[%emt 0:00:31]} d5 {[%emt 0:00:28]} 3. e5 {[%emt 0:00:31]} c5 {[%emt 0:00:11]} 4. c3 {[%emt 0:00:02]} Nc6 {[%emt 0:00:17]} 5. Nf3 {[%emt 0:00:05]} Bd7 {[%emt 0:00:06]} 6. Bd3 {[%emt 0:00:14]} cxd4 {[%emt 0:00:14] C02: French: Advance Variation.} 7. O-O {[%emt 0:00:02] seems to push 7.cxd4 aside.} Nge7 {[%emt 0:02:24]} (7... dxc3 $15 8. Nxc3 Nge7) 8. Re1 {[%emt 0:02:24]} (8. cxd4 $11 Nb4 9. Be2) 8... Rc8 {[%emt 0:03:20]} (8... dxc3 $15 9. Nxc3 Ng6) 9. h4 {[%emt 0:07:30] [#]} (9. Nxd4 $11 Nxd4 10. cxd4) 9... dxc3 $146 {[%emt 0:05:17]} ({Predecessor:} 9... h6 10. a3 dxc3 11. Nxc3 a6 12. Be3 Na5 13. Qe2 Nc4 14. Bc1 b5 15. a4 b4 {1-0 (72) Hector,J (2532)-Brynell,S (2461) Vaxjo 2008}) 10. Nxc3 {[%emt 0:00:12]} Nb4 {[%emt 0:01:34]} 11. Bb1 {[%emt 0:02:07]} a6 {[%emt 0:07:07]} 12. Be3 {[%emt 0:06:04]} b5 {[%emt 0:07:34]} (12... Nbc6 $15) 13. Ne2 {[%emt 0:24:32]} Qc7 {[%emt 0:09:04]} 14. Ned4 {[%emt 0:00:43]} Ng6 {[%emt 0:00:59]} (14... Nbc6 $15) 15. a3 $14 {[%emt 0:10:44]} Nc6 {[%emt 0:02:09]} 16. Nxc6 {[%emt 0:00:12]} Bxc6 {[%emt 0:00:39]} 17. Bd4 {[%emt 0:04:49]} (17. Qd4 $1 $14) 17... Be7 {[%emt 0:02:26]} 18. g3 {[%emt 0:06:15][%mdl 1024] White has compensation.} b4 {[%emt 0:08:12]} 19. a4 {[%emt 0:04:33]} Bb7 {[%emt 0:06:55]} 20. h5 {[%emt 0:02:34]} ({White should play} 20. Bd3 $14) 20... Nf8 $11 {[%emt 0:00:22]} 21. Bd3 {[%emt 0:01:04]} Nd7 {[%emt 0:00:48]} 22. Nd2 {[%emt 0:09:41] Weighted Error Value: White=0.26 (precise) /Black=0.32} ({Better is} 22. Qe2 $11) 1/2-1/2

[Event "12th WLC Weekend 2022"]
[Site "Eindhoven"]
[Date "2022.05.15"]
[Round "5.18"]
[White "Cebula, Jerzy"]
[Black "Van der Velden, Alain"]
[Result "1-0"]
[ECO "C77"]
[WhiteElo "1994"]
[BlackElo "1659"]
[Annotator "TA"]
[PlyCount "35"]
[EventDate "2022.05.13"]
[EventType "swiss"]
[EventCountry "NED"]
[SourceTitle "playchess.com"]
[Source "ChessBase"]
[SourceQuality "1"]
[TimeControl "5400+30"]

{[%evp 10,35,27,27,123,125,168,174,189,195,226,175,145,161,278,204,200,230,179,182,193,156,146,154,143,158,162,140]} 1. e4 {[%emt 0:00:02]} e5 {[%emt 0:01:08]} 2. Nf3 {[%emt 0:00:12]} Nc6 {[%emt 0:00:04]} 3. Bb5 {[%emt 0:00:13]} a6 {[%emt 0:00:04]} 4. Ba4 {[%emt 0:00:15]} Nf6 {[%emt 0:00:04]} 5. d4 {[%emt 0:00:54]} Nxe4 {[%emt 0:01:53]} 6. Qe2 {[%emt 0:00:58]} (6. O-O $5 {[%cal Rf1e1]}) 6... Nd6 {[%emt 0:06:04] C77: Ruy Lopez: 3...a6 4 Ba4 Nf6, unusual lines.} (6... b5 $11) 7. dxe5 $16 {[%emt 0:08:25]} Nf5 {[%emt 0:00:24] [#]} 8. Qe4 $1 {[%emt 0:01:43]} g6 {[%emt 0:06:04]} 9. Nc3 {[%emt 0:02:53]} Be7 {[%emt 0:07:07]} 10. Nd5 {[%emt 0:02:55] [#]} b5 $146 {[%emt 0:05:25]} ({Predecessor:} 10... O-O 11. Bf4 b5 12. Bb3 Bb7 13. Nxe7+ Qxe7 14. Bd5 Rab8 15. O-O-O Nd8 16. g4 Ng7 17. Bxb7 Nxb7 {1-0 (28) Acosta,A (2330)-Quintero,R (2092) Bogota 2009}) 11. Bb3 {[%emt 0:03:11]} Ng7 {[%emt 0:04:36]} (11... O-O {might work better.} 12. h4 Na5) 12. Nf6+ {[%emt 0:05:25]} Bxf6 {[%emt 0:00:26] White is clearly better.} 13. exf6+ {[%emt 0:00:13][%mdl 64] Discovered Attack} Ne6 {[%emt 0:00:04]} 14. Bxe6 {[%emt 0:14:09]} O-O {[%emt 0:00:09]} 15. Bxf7+ {[%emt 0:01:32]} Rxf7 {[%emt 0:00:07]} 16. Bg5 {[%emt 0:00:14] 0-0-0 is the strong threat. 0x0.000a5aaed871dp-1022s more active pieces. The black rooks are badly placed.} d5 {[%emt 0:01:19]} 17. Qe2 {[%emt 0:12:53]} Bg4 {[%emt 0:03:45][%cal Oh7h6] [#]} 18. O-O-O $1 {[%emt 0:01:30] Weighted Error Value: White=0.11 (very precise) /Black=0.35} 1-0

[Event "12th WLC Weekend 2022"]
[Site "Eindhoven"]
[Date "2022.05.15"]
[Round "5.19"]
[White "Suranyi, Pal"]
[Black "Oskam, Julian"]
[Result "1-0"]
[ECO "D36"]
[WhiteElo "2013"]
[BlackElo "1627"]
[Annotator "TA"]
[PlyCount "63"]
[EventDate "2022.05.13"]
[EventType "swiss"]
[EventCountry "NED"]
[SourceTitle "playchess.com"]
[Source "ChessBase"]
[SourceQuality "1"]
[TimeControl "5400+30"]

{[%evp 23,62,24,27,0,143,138,179,164,196,69,75,79,62,104,86,0,45,-109,193,212,387,358,385,402,376,210,193,202,298,313,485,464,707,704,29994,29995,29997,29998,29998,29998,29999]} 1. d4 {[%emt 0:01:51]} Nf6 {[%emt 0:00:08]} 2. c4 {[%emt 0:00:13]} e6 {[%emt 0:00:06]} 3. Nc3 {[%emt 0:00:25]} d5 {[%emt 0:00:06]} 4. cxd5 {[%emt 0:00:07]} exd5 {[%emt 0:00:12]} 5. Bg5 {[%emt 0:00:06]} Be7 {[%emt 0:00:12]} 6. Qc2 {[%emt 0:00:14]} c6 {[%emt 0:03:02]} 7. e3 {[%emt 0:00:07]} O-O {[%emt 0:01:17]} 8. Bd3 {[%emt 0:00:13]} h6 {[%emt 0:00:57]} 9. Bh4 {[%emt 0:00:16]} b6 {[%emt 0:03:46]} 10. Nge2 {[%emt 0:05:25]} Bb7 {[%emt 0:04:01]} 11. O-O {[%emt 0:00:35]} Nbd7 {[%emt 0:01:20]} 12. f3 {[%emt 0:11:16]} Re8 {[%emt 0:05:51] [#]} 13. h3 $146 {[%emt 0:03:58] D36: Queen's Gambit Declined: Exchange Variation: Main line (5 Bg5 c6 6 Qc2).} ({Predecessor:} 13. Bf5 c5 14. Rad1 Nf8 15. Kh1 Nh5 16. Bf2 g6 17. Bh3 cxd4 18. Nxd4 Bc5 19. a3 Nh7 20. g4 N5f6 {½-½ (34) Plas,R (2363)-Mikhailov,V (2351) ICCF email 2019}) 13... Bd6 {[%emt 0:11:23]} (13... c5 $11) 14. e4 $16 {[%emt 0:28:28]} dxe4 {[%emt 0:00:10]} 15. fxe4 {[%emt 0:00:04] e5 is the strong threat. White is clearly better.} Be7 {[%emt 0:00:08]} 16. Bc4 {[%emt 0:11:49]} (16. Rad1 $18) 16... b5 $14 {[%emt 0:02:53] [#]} 17. Bxf7+ {[%emt 0:02:55]} Kxf7 {[%emt 0:00:20]} 18. Qb3+ {[%emt 0:11:56]} Kg6 {[%emt 0:00:02]} (18... Kf8 $2 19. Nf4 (19. e5 Qb6 $16) 19... Nd5 20. exd5 $18) 19. Nf4+ {[%emt 0:00:12]} Kh7 {[%emt 0:00:25] Threatens to win with ...Qb6.} 20. Qf7 $2 {[%emt 0:03:26] [#]} (20. e5 $14 {keeps the upper hand.} Nf8 21. exf6 Bxf6 22. Qc2+ (22. Bxf6 Qxf6 23. Rad1 Rad8 $14) 22... Kg8 23. Bxf6 Qxf6 24. Rad1) 20... Bb4 $2 {[%emt 0:10:50][%mdl 8192] Black cannot hold the game after this.} (20... Rf8 $2 21. Qg6+ Kh8 22. Ne6 $18) (20... Nf8 $1 $17 {and life is bright.} 21. Bxf6 Bxf6 22. Qxb7 Qxd4+ 23. Kh1 Qd7 24. Qxd7 Nxd7) 21. e5 $18 {[%emt 0:05:27][%cal Be4e5,Be5f6][%mdl 32]} Nf8 {[%emt 0:04:16] Prevents Qg6+.} (21... Qe7 22. Qg6+ Kg8) 22. exf6 {[%emt 0:07:29][%csl Gf6][%cal Rf7g7] Chess con chili.} ({Not} 22. Qxb7 Qxd4+ 23. Kh1 Qd7 $11) 22... Qxd4+ {[%emt 0:01:46]} 23. Kh1 {[%emt 0:00:21][%csl Gf6][%cal Rf7g7]} Qd7 {[%emt 0:00:07]} 24. Qxd7 $40 {[%emt 0:01:47][%mdl 128] White is out for blood.} (24. Qb3 $142 Bxc3 25. bxc3) 24... Nxd7 {[%emt 0:00:01] [#]} 25. fxg7 {[%emt 0:01:02]} Bxc3 {[%emt 0:01:23]} (25... Kxg7 {was necessary.} 26. Rad1 Bc8) 26. bxc3 {[%emt 0:00:56] aiming for Rad1.} Kxg7 {[%emt 0:02:09]} (26... Re5 $142 27. Rad1 Nb6) 27. Rad1 {[%emt 0:00:19]} Nb6 {[%emt 0:01:27]} (27... Bc8 $142 28. Nh5+ Kh7) 28. Nh5+ {[%emt 0:00:32]} Kg6 {[%emt 0:01:25]} 29. Rd6+ {[%emt 0:00:41] White mates.} Kxh5 {[%emt 0:00:26]} 30. Rf5+ {[%emt 0:00:10]} Kxh4 {[%emt 0:00:13]} 31. Rd4+ {[%emt 0:00:05]} Kg3 {[%emt 0:00:18]} 32. Rf3# {[%emt 0:00:28] Weighted Error Value: White=0.38/Black=0.89} 1-0